bitfinex/quotes_ETHUSD_20250730
["timestamp","ask_amount","ask_price","bid_price","bid_amount"]
[1753899858359,10.40484931,3816.2,3816.1,0.04]
[1753899858677,10.40484931,3816.2,3813.4,0.4817]
[1753899858678,0.55,3815.0,3813.4,0.4817]
[1753899858863,0.7598,3815.1,3814.2,0.4807]
[1753899859273,4.152,3815.0,3814.3,0.4673]
[1753899859447,3.96823456,3815.0,3814.4,0.6119]
[1753899859643,3.96823456,3815.0,3814.5,0.948]
[1753899859848,3.96823456,3815.0,3814.6,0.948]
[1753899860074,3.96823456,3815.0,3814.7,0.4807]
[1753899860287,3.96823456,3815.0,3814.8,0.4807]
[1753899860580,0.7606,3815.6,3814.9,0.948]
[1753899860743,0.1312,3815.1,3815.0,0.4807]
[1753899860941,0.1312,3815.6,3815.0,1.10541231]
[1753899861154,4.152,3815.5,3815.1,0.4807]
[1753899861342,4.152,3815.5,3815.2,0.5985]
[1753899861551,4.152,3815.5,3815.3,0.4807]
[1753899861773,4.152,3815.5,3815.4,0.4807]
[1753899861969,4.152,3815.5,3815.4,0.948]
[1753899862360,4.152,3815.5,3815.4,0.4807]
[1753899862885,4.152,3815.5,3814.8,0.4683]
[1753899863085,4.152,3815.5,3815.2,0.4807]
[1753899863258,4.152,3815.5,3815.3,0.4807]
[1753899864197,4.152,3815.5,3814.9,0.4807]
[1753899864348,0.1312,3815.4,3814.9,0.4807]
[1753899864547,0.1312,3815.3,3815.0,0.4673]
[1753899864780,0.1312,3815.4,3815.1,0.4807]
[1753899865381,0.1312,3815.4,3815.2,0.4807]
[1753899865782,0.1312,3815.4,3815.0,0.4673]
[1753899865988,0.1312,3815.4,3815.3,0.4807]
[1753899866205,0.1312,3815.4,3814.8,0.1322]
[1753899866528,0.1312,3815.4,3814.9,0.4807]
[1753899866809,0.1312,3815.4,3815.0,0.4807]
[1753899866991,0.809,3816.3,3815.1,3.40526327]
[1753899866992,4.152,3815.8,3815.1,3.40526327]
[1753899867152,0.1312,3816.0,3815.3,0.1312]
[1753899867358,0.1312,3816.0,3815.4,0.4807]
[1753899869712,0.1312,3816.0,3815.3,0.1312]
[1753899869869,0.1312,3816.0,3815.4,0.4807]
[1753899872867,4.152,3815.9,3815.4,0.4807]
[1753899873100,4.152,3815.9,3815.5,0.4807]
[1753899873269,4.152,3815.9,3815.4,0.4673]
[1753899873469,4.152,3815.9,3815.6,0.4807]
[1753899875152,4.152,3815.9,3815.7,0.4807]
[1753899875639,4.152,3815.9,3815.8,0.4807]
[1753899875939,0.7501,3816.7,3815.9,0.8323]
[1753899876137,4.2822,3816.8,3816.1,2.62047118]
[1753899876452,4.151,3816.8,3816.4,0.1312]
[1753899876737,4.151,3816.8,3816.5,0.948]
[1753899877055,4.151,3816.8,3816.6,0.4807]
[1753899877207,0.04,3816.9,3816.7,0.4807]
[1753899877400,0.04,3816.9,3816.8,0.948]
[1753899877600,0.04,3816.9,3816.8,3.6991958]
[1753899877839,0.04,3816.9,3816.8,1.0792]
[1753899880053,0.04,3816.9,3816.8,0.6119]
[1753899880425,0.04,3816.9,3816.8,1.0792]
[1753899883370,0.04,3816.9,3816.8,0.6119]
[1753899884757,0.04,3816.9,3816.3,1.2346]
[1753899884961,0.04,3816.9,3815.9,2.62058322]
[1753899885136,0.04,3816.9,3815.9,0.4807]
[1753899885335,0.17126,3816.9,3815.9,0.4807]
[1753899885568,4.5895,3816.8,3815.9,0.4807]
[1753899885776,0.8295,3816.7,3815.9,0.4807]
[1753899885951,1.7513,3816.7,3815.6,1.7019]
[1753899886152,0.8295,3816.7,3815.7,0.4807]
[1753899886354,0.8295,3816.7,3815.7,0.948]
[1753899886535,0.8295,3816.7,3815.7,0.4673]
[1753899886735,0.8295,3816.7,3815.8,0.4835]
[1753899887074,0.68161168,3816.6,3815.6,1.2374]
[1753899887379,4.149,3816.8,3815.7,0.4835]
[1753899887575,4.149,3816.8,3816.0,2.62050003]
[1753899887753,4.149,3816.8,3816.1,0.4835]
[1753899887940,4.5853,3816.8,3815.9,0.4835]
[1753899888135,5.17241,3816.8,3815.9,0.4835]
[1753899888341,0.24509804,3816.7,3816.0,0.02620545]
[1753899888542,0.24509804,3816.7,3815.6,0.7539]
[1753899888543,0.24509804,3816.7,3816.1,0.9266]
[1753899888752,4.149,3816.8,3816.2,0.4835]
[1753899888956,0.24507967,3816.7,3816.2,0.4835]
[1753899889164,0.24507967,3816.7,3815.7,0.55]
[1753899889371,4.149,3816.8,3816.3,0.4835]
[1753899889553,4.149,3816.8,3816.4,0.9266]
[1753899889753,4.149,3816.8,3816.5,0.4835]
[1753899889970,4.149,3816.8,3816.2,2.62035906]
[1753899890170,4.149,3816.8,3816.6,0.4835]
[1753899891882,4.149,3816.8,3816.7,0.4835]
[1753899893163,4.149,3816.8,3816.3,0.8069]
[1753899893366,4.149,3816.8,3816.4,0.4835]
[1753899894877,4.149,3816.8,3816.1,0.9266]
[1753899895205,1.2,3816.7,3815.6,0.4835]
[1753899895410,0.5675,3816.6,3816.0,0.1312]
[1753899899229,0.4363,3816.5,3816.0,0.1312]
[1753899899725,0.4363,3816.4,3816.0,0.1312]
[1753899899906,0.4363,3816.4,3816.0,0.6147]
[1753899900221,0.4363,3816.4,3816.0,0.1312]
[1753899900419,0.1312,3816.6,3816.0,0.6147]
[1753899901125,0.1312,3816.6,3816.0,0.1312]
[1753899901283,1.0724,3816.5,3816.0,0.1312]
[1753899901487,0.4363,3816.4,3816.0,0.1312]
[1753899902101,0.4363,3816.3,3816.0,0.1312]
[1753899902424,0.1312,3816.6,3816.0,0.1312]
[1753899902729,0.1312,3816.6,3816.1,0.4835]
[1753899902947,4.146,3816.6,3816.2,0.4431]
[1753899903139,5.1076,3817.2,3816.3,0.4431]
[1753899903426,5.1076,3817.2,3816.5,0.1312]
[1753899903631,5.1076,3817.2,3816.7,0.1312]
[1753899903794,5.1076,3817.2,3816.8,0.4835]
[1753899904634,5.5439,3817.2,3816.7,0.1312]
[1753899904834,0.4363,3816.8,3816.0,1.2485]
[1753899905039,0.4363,3816.8,3816.4,0.1312]
[1753899905220,0.1712,3816.9,3816.4,0.6147]
[1753899905428,0.1712,3816.9,3816.5,0.4835]
[1753899906158,0.1712,3816.9,3816.4,0.1312]
[1753899906336,0.1712,3816.9,3815.6,1.2601]
[1753899906337,0.7976,3816.7,3815.6,1.2601]
[1753899906633,4.7125,3816.6,3816.0,0.1312]
[1753899909242,4.7125,3816.6,3816.0,0.6147]
[1753899909419,0.4363,3816.5,3816.0,0.1312]
[1753899909714,0.4363,3816.4,3816.0,0.1312]
[1753899909918,0.8982,3816.3,3815.3,0.001]
[1753899910131,0.7592,3816.2,3815.3,0.001]
[1753899910347,0.1312,3815.7,3815.3,0.001]
[1753899910505,4.144,3815.6,3815.3,0.001]
[1753899910702,4.144,3815.6,3815.3,0.4845]
[1753899910906,4.144,3815.6,3815.3,0.001]
[1753899911156,0.7592,3815.4,3815.3,0.001]
[1753899911622,1.1955,3815.4,3815.3,0.001]
[1753899916332,1.81499655,3815.4,3815.3,0.001]
[1753899916530,2.27689655,3815.4,3815.3,0.001]
[1753899916944,3.39213197,3815.0,3814.9,0.001]
[1753899917255,3.3922694,3814.8,3814.4,0.001]
[1753899917418,2.62178176,3814.2,3814.1,0.04]
[1753899917755,3.7591,3813.5,3813.1,0.041]
[1753899917928,8.05953655,3813.5,3813.1,0.041]
[1753899918129,8.9487,3813.5,3813.1,0.041]
[1753899919624,46.13089334,3813.5,3812.1,0.04]
[1753899919825,0.1312,3812.2,3812.1,0.04]
[1753899920146,8.0415,3812.2,3812.1,0.04]
[1753899920467,0.7524,3811.5,3810.8,0.1312]
[1753899920672,3.0,3811.6,3810.1,0.041]
[1753899920673,30.0,3811.1,3810.1,0.041]
[1753899920884,0.1312,3810.6,3810.1,0.041]
[1753899921086,3.15743655,3810.6,3810.1,0.041]
[1753899921249,9.31114366,3810.6,3810.1,0.041]
[1753899921592,39.31114366,3810.6,3810.1,0.041]
[1753899921755,41.9354023,3810.6,3810.1,0.041]
[1753899922093,32.62453414,3810.2,3810.1,0.00099997]
[1753899922295,40.65933414,3810.2,3810.1,0.00099997]
[1753899922435,44.14499875,3810.2,3810.1,0.00099997]
[1753899922642,45.08410863,3810.2,3810.1,0.00099997]
[1753899923247,36.45247859,3809.7,3809.6,0.001]
[1753899923485,30.0,3809.0,3808.1,0.04]
[1753899923794,35.8920125,3808.2,3808.1,0.04]
[1753899924003,42.60727711,3808.2,3808.1,0.04]
[1753899924147,40.11256461,3808.2,3808.1,0.04]
[1753899924334,41.02796461,3808.2,3808.1,0.04]
[1753899924852,0.7744,3807.9,3807.1,0.04]
[1753899925171,30.1312,3807.2,3807.1,0.04]
[1753899925372,41.08206461,3807.2,3807.1,0.04]
[1753899925545,41.54536461,3807.2,3807.1,0.04]
[1753899925960,44.17196683,3807.2,3807.1,0.04]
[1753899926158,41.54536461,3807.2,3807.1,0.04]
[1753899926358,3.7847,3806.8,3806.1,0.041]
[1753899926565,0.1312,3806.2,3806.1,0.041]
[1753899926878,45.26087722,3806.2,3806.1,0.041]
[1753899927060,48.80356953,3806.2,3806.1,0.041]
[1753899927262,35.026047,3806.2,3806.1,0.041]
[1753899927464,9.173047,3806.2,3806.1,0.041]
[1753899927666,48.74290531,3806.2,3806.1,0.041]
[1753899928167,40.0903517,3806.2,3806.1,0.041]
[1753899928395,3.9159,3806.2,3806.1,0.041]
[1753899928694,8.0639,3806.2,3806.1,0.041]
[1753899929049,0.9159,3806.2,3806.1,0.591]
[1753899929246,4.2802,3806.2,3806.1,1.5154]
[1753899929483,4.2802,3806.2,3806.1,0.591]
[1753899929681,4.2802,3806.2,3806.1,0.041]
[1753899929983,34.70922,3806.2,3806.1,0.041]
[1753899930205,39.43382,3806.2,3806.1,0.041]
[1753899930816,3.0,3805.6,3803.0,0.4814]
[1753899931099,30.0,3805.0,3803.6,0.4814]
[1753899931309,3.0,3804.7,3803.6,0.4814]
[1753899931604,3.0,3804.0,3802.2,0.4814]
[1753899931747,33.0,3803.6,3802.2,0.4814]
[1753899931950,30.0,3803.3,3802.2,0.4814]
[1753899932149,0.4814,3803.6,3802.3,0.443]
[1753899932448,0.7591,3803.8,3802.4,0.4814]
[1753899932646,1.2405,3803.8,3802.4,0.4814]
[1753899932947,30.0,3803.5,3802.5,0.443]
[1753899933253,4.166,3803.4,3802.7,0.55]
[1753899933454,4.19223655,3803.3,3802.7,0.993]
[1753899933680,3.0,3803.2,3802.3,0.55]
[1753899933889,0.02623655,3803.1,3802.3,0.55]
[1753899934085,0.7591,3803.8,3802.5,0.55]
[1753899934309,0.4521,3804.3,3802.7,0.55]
[1753899934505,3.0,3803.9,3802.7,0.55]
[1753899934654,4.17,3803.8,3802.7,0.993]
[1753899935149,4.171,3803.7,3803.1,0.55]
[1753899935384,4.171,3803.7,3803.3,0.55]
[1753899935617,0.790342,3804.7,3803.9,0.55]
[1753899935832,4.173,3804.6,3804.1,0.55]
[1753899935968,0.4173,3804.5,3804.1,0.55]
[1753899936169,0.47833655,3804.4,3803.6,0.55]
[1753899936409,0.4173,3804.5,3803.6,0.55]
[1753899936669,0.02623655,3804.4,3803.6,0.55]
[1753899936866,0.02623655,3804.4,3803.2,0.8046]
[1753899937121,30.0,3804.1,3803.1,0.55]
[1753899937422,30.0,3803.9,3802.6,0.8022]
[1753899937572,30.0,3803.9,3802.5,0.9244]
[1753899937880,0.8161,3803.8,3802.5,0.9244]
[1753899938224,0.8161,3803.8,3802.6,0.55]
[1753899938386,4.35215,3803.7,3802.6,0.55]
[1753899938908,30.94163655,3803.6,3802.1,0.5224]
[1753899939204,30.0,3803.5,3802.2,0.55]
[1753899939511,30.0,3803.5,3802.4,0.55]
[1753899939708,6.74726461,3803.4,3802.4,0.55]
[1753899939879,0.7846,3803.6,3802.6,0.55]
[1753899940206,6.316,3803.7,3802.8,0.55]
[1753899940408,4.176,3803.5,3803.0,0.55]
[1753899940709,4.176,3803.5,3802.1,0.06730125]
[1753899940710,4.176,3803.5,3802.8,0.55]
[1753899941108,0.1312,3802.9,3802.6,0.55]
[1753899941312,4.179,3802.8,3802.7,0.993]
[1753899941681,4.179,3802.8,3802.7,1.4744]
[1753899942011,6.316,3803.7,3803.0,0.55]
[1753899942222,4.179,3803.4,3803.1,2.229]
[1753899942525,0.02623655,3803.3,3802.8,0.55]
[1753899942700,0.1312,3802.9,3802.8,0.55]
[1753899942900,4.3122,3802.9,3802.8,0.55]
[1753899943209,0.1312,3802.9,3802.8,1.4744]
[1753899943413,4.3122,3802.9,3802.8,1.4744]
[1753899944318,4.3122,3802.9,3802.8,1.0314]
[1753899944815,4.74342,3802.9,3802.8,0.55]
[1753899945518,5.19552,3802.9,3802.1,0.041]
[1753899945717,0.1312,3802.3,3802.1,0.041]
[1753899945915,4.177,3802.2,3802.1,0.041]
[1753899946114,4.177,3802.2,3802.1,1.0724]
[1753899946315,4.177,3802.2,3802.1,1.5154]
[1753899946914,0.43122,3802.9,3802.1,1.5154]
[1753899946915,4.177,3802.5,3802.2,0.55]
[1753899947116,4.177,3802.5,3802.4,0.55]
[1753899947318,0.4543,3804.5,3802.5,0.8328]
[1753899947619,0.1312,3803.3,3802.6,1.4552]
[1753899947820,0.04,3804.9,3803.0,0.1312]
[1753899947990,0.1312,3803.9,3803.4,0.55]
[1753899948190,0.1312,3803.9,3803.3,2.76043453]
[1753899948191,0.04,3804.9,3803.9,0.55]
[1753899948423,0.1312,3804.6,3804.1,0.55]
[1753899948621,0.1312,3804.6,3804.0,0.9052]
[1753899948622,0.04,3804.9,3804.3,0.55]
[1753899948822,0.04,3804.9,3804.8,4.01105904]
[1753899948986,0.28184242,3804.9,3804.8,4.91625904]
[1753899949188,4.182,3805.8,3805.5,0.55]
[1753899949402,0.04,3805.9,3805.8,3.17756844]
[1753899949602,0.04,3805.9,3805.8,3.33504412]
[1753899949804,0.04,3805.9,3805.8,4.99124412]
[1753899950035,0.04,3805.9,3805.8,4.96496844]
[1753899950535,0.04,3805.9,3805.8,2.3374]
[1753899950911,0.04,3805.9,3805.8,4.96496844]
[1753899951112,0.04,3806.9,3805.9,0.55]
[1753899951425,0.04,3806.9,3806.1,0.55]
[1753899951632,0.04,3806.9,3806.7,0.55]
[1753899951813,0.04,3806.9,3806.7,1.003]
[1753899952015,0.04,3806.9,3806.8,1.0022]
[1753899952319,0.5805,3806.8,3805.8,0.751]
[1753899952643,0.26921833,3806.7,3805.4,0.1312]
[1753899952799,0.1312,3805.9,3805.3,0.4522]
[1753899952997,0.1312,3805.9,3805.3,0.5834]
[1753899953413,0.24320004,3805.8,3805.3,0.1312]
[1753899953749,0.24319381,3805.7,3805.4,0.9052]
[1753899953905,0.1312,3805.9,3805.5,0.4522]
[1753899954103,0.24318899,3805.8,3805.6,0.55]
[1753899954316,0.24318899,3805.7,3805.2,0.7722]
[1753899954527,0.37438899,3805.6,3805.0,0.4522]
[1753899954708,0.24318899,3805.5,3805.0,0.4522]
[1753899954928,4.45042554,3805.4,3804.6,0.7722]
[1753899955108,0.1312,3805.1,3804.6,0.7722]
[1753899955305,0.24318899,3805.0,3804.3,0.453]
[1753899955500,0.40034531,3804.9,3804.2,0.4522]
[1753899955708,0.26914531,3804.8,3804.1,0.04]
[1753899955921,0.1312,3804.3,3804.1,0.04]
[1753899956145,0.1312,3804.3,3804.2,0.55]
[1753899956366,0.1312,3804.3,3804.1,0.04]
[1753899956815,4.182,3804.7,3804.2,1.0022]
[1753899957038,0.1312,3804.5,3804.2,1.0022]
[1753899957240,0.1312,3804.5,3804.3,0.4522]
[1753899957567,7.0,3804.8,3804.4,0.6812]
[1753899957718,7.0,3804.8,3804.6,0.55]
[1753899958032,7.0,3804.8,3804.7,1.5864]
[1753899958560,4.3142,3805.2,3804.8,0.55]
[1753899958867,0.24233724,3805.1,3804.9,0.55]
[1753899959157,0.24233724,3805.0,3804.8,0.55]
[1753899959365,0.24233724,3804.9,3804.8,0.55]
[1753899959559,0.24233724,3804.9,3804.5,0.55]
[1753899959765,0.24233724,3804.8,3804.5,0.55]
[1753899959952,0.24233724,3804.7,3804.4,0.55]
[1753899960152,0.24233724,3804.6,3804.5,1.4552]
[1753899960520,0.24228987,3805.1,3804.8,0.55]
[1753899960768,0.2422916,3805.0,3804.9,1.4552]
[1753899961058,0.1312,3805.8,3805.2,0.55]
[1753899961236,0.48466528,3805.7,3805.2,0.55]
[1753899961435,0.48466528,3805.7,3804.4,2.62849194]
[1753899961436,0.48466528,3805.6,3805.4,0.55]
[1753899961763,0.1312,3804.5,3804.1,0.04]
[1753899961977,4.178,3804.9,3804.2,0.9052]
[1753899962180,4.189,3805.1,3804.2,1.0364]
[1753899962365,0.37325438,3805.0,3804.3,0.55]
[1753899962677,0.37325438,3805.0,3804.5,0.55]
[1753899963035,0.02623655,3804.9,3804.2,0.55]
[1753899963238,0.1312,3804.7,3804.2,0.55]
[1753899964053,0.2419661,3804.9,3804.4,0.55]
[1753899964255,4.3182,3805.0,3804.4,0.6812]
[1753899964487,0.4513,3805.9,3804.8,2.62822115]
[1753899964691,0.4513,3805.9,3805.0,0.55]
[1753899964692,0.1312,3805.5,3805.0,0.55]
[1753899964891,0.50995886,3805.5,3805.0,0.55]
[1753899965207,0.48372231,3805.4,3805.2,0.6812]
[1753899965405,0.48372231,3805.3,3805.2,3.76218276]
[1753899965612,0.48363504,3805.3,3805.2,3.76218276]
[1753899965815,0.48363504,3805.3,3805.2,1.1342]
[1753899965974,0.48363504,3805.3,3805.2,0.6812]
[1753899966174,0.61483504,3805.3,3804.9,0.55]
[1753899966397,0.48363504,3805.2,3804.9,1.4552]
[1753899966620,0.24186066,3805.1,3805.0,4.21447522]
[1753899966931,0.1312,3805.8,3805.4,0.55]
[1753899967274,0.1312,3805.8,3805.6,0.55]
[1753899967275,0.61484787,3805.8,3805.6,0.55]
[1753899967481,0.48364787,3805.7,3805.6,3.17770653]
[1753899967678,0.48364787,3805.7,3805.6,0.55]
[1753899967924,0.48364787,3805.7,3805.6,3.76110653]
[1753899968103,0.48364787,3805.7,3805.6,4.21410653]
[1753899968278,0.48364787,3805.7,3805.6,1.1334]
[1753899968481,0.24183054,3805.7,3805.6,1.1334]
[1753899968676,0.002,3805.9,3805.6,1.5864]
[1753899968882,0.24383054,3805.9,3805.8,0.55]
[1753899969176,0.2438453,3805.9,3805.8,0.6812]
[1753899969420,0.2438453,3805.9,3805.2,0.453]
[1753899969727,0.1312,3805.6,3805.0,2.62808145]
[1753899969881,0.1312,3805.8,3805.3,0.1312]
[1753899970082,0.1312,3805.8,3805.4,0.4522]
[1753899970392,0.1312,3805.8,3804.8,1.2708]
[1753899970709,0.1312,3805.4,3804.4,2.62851972]
[1753899970891,0.1312,3805.0,3804.5,0.1312]
[1753899971094,0.1312,3805.2,3804.7,0.6812]
[1753899971282,0.002,3805.9,3805.1,0.55]
[1753899971283,0.1312,3805.4,3805.1,0.55]
[1753899971617,0.002,3805.9,3805.7,2.7587725]
[1753899971790,0.002,3805.9,3805.5,0.55]
[1753899971990,0.002,3805.9,3805.7,0.1312]
[1753899972392,0.002,3805.9,3805.8,0.4522]
[1753899972586,0.24419938,3805.9,3805.8,0.4522]
[1753899972992,0.002,3805.9,3805.8,1.0022]
[1753899973187,0.002,3805.9,3805.8,4.08276844]
[1753899973413,0.002,3805.9,3805.8,1.4552]
[1753899973597,0.002,3805.9,3805.8,4.10904412]
[1753899975025,0.002,3806.3,3805.8,4.10904412]
[1753899975026,1e-08,3806.3,3806.2,3.17729231]
[1753899975328,1e-08,3806.3,3806.2,6.17729231]
[1753899975534,1e-08,3806.3,3806.2,4.08249231]
[1753899976427,1e-08,3806.3,3806.2,4.10876523]
[1753899976930,1e-08,3806.3,3806.2,8.30576523]
[1753899977233,1e-08,3806.3,3806.2,8.27949231]
[1753899978927,1e-08,3806.3,3806.2,15.09695361]
[1753899979129,1e-08,3806.3,3806.2,9.07169231]
[1753899979331,1e-08,3806.3,3806.2,12.07169231]
[1753899979493,1e-08,3806.3,3806.2,18.09695361]
[1753899979693,1e-08,3806.3,3806.2,7.87469231]
[1753899979889,1e-08,3806.3,3806.2,12.06669231]
[1753899980221,1e-08,3806.3,3806.2,12.06569231]
[1753899980933,1e-08,3806.3,3806.0,2.62738179]
[1753899981237,1e-08,3806.3,3805.8,4.19]
[1753899981415,1e-08,3806.3,3806.0,2.62741462]
[1753899981929,1e-08,3806.3,3806.1,2.62735663]
[1753899982230,1e-08,3806.3,3806.2,3.17729231]
[1753899982795,1e-08,3806.3,3806.2,8.31639231]
[1753899982991,1e-08,3806.3,3806.2,9.08239231]
[1753899984409,1e-08,3806.3,3806.2,8.61529231]
[1753899985034,1e-08,3806.3,3806.2,8.74649231]
[1753899986110,1e-08,3806.3,3806.2,4.00649231]
[1753899986315,1e-08,3806.3,3806.2,7.70749231]
[1753899986550,1e-08,3806.3,3806.2,6.94149231]
[1753899986750,1e-08,3806.3,3806.2,4.3142]
[1753899986956,1e-08,3806.3,3806.2,0.1312]
[1753899987167,1e-08,3806.3,3806.2,2.75849231]
[1753899987665,1e-08,3806.3,3806.2,0.1312]
[1753899988164,1e-08,3806.3,3806.2,2.75849231]
[1753899988367,1e-08,3806.3,3806.2,0.1312]
[1753899988532,1e-08,3806.3,3806.2,2.75849231]
[1753899988732,1e-08,3806.3,3806.2,0.1312]
[1753899990041,1e-08,3806.3,3806.2,2.75849231]
[1753899990461,1e-08,3806.3,3806.2,0.1312]
[1753899990791,1e-08,3806.3,3806.2,2.75849231]
[1753899991777,1e-08,3806.3,3806.2,3.24049231]
[1753899991978,1e-08,3806.3,3806.2,4.25759231]
[1753899992347,1e-08,3806.3,3806.2,4.28386523]
[1753899992763,0.04,3806.9,3806.8,10.01993951]
[1753899992984,0.04,3806.9,3806.8,3.99467821]
[1753899993138,0.04,3806.9,3806.8,8.17367821]
[1753899993457,0.04,3806.9,3806.8,8.78687821]
[1753899993659,0.04,3806.9,3806.8,7.75487821]
[1753899993886,0.04,3806.9,3806.8,0.1312]
[1753899994070,0.04,3806.9,3806.8,2.75807821]
[1753899994274,0.04,3806.9,3806.8,0.1312]
[1753899994771,0.04,3806.9,3806.8,2.75807821]
[1753899995571,0.04,3806.9,3806.8,0.1312]
[1753899998135,0.04,3806.9,3806.8,2.75807821]
[1753899998339,0.04,3806.9,3806.8,0.1312]
[1753899998799,0.04,3806.9,3802.9,1.36652275]
[1753899998800,0.4869,3806.9,3805.8,1.2402]
[1753899999004,0.4869,3806.9,3806.2,2.62723622]
[1753899999288,0.4869,3806.9,3806.4,0.1312]
[1753899999952,0.04,3806.9,3806.8,2.62687821]
[1753900000182,0.04,3806.9,3806.8,0.6132]
[1753900000391,0.04,3806.9,3806.8,3.24007821]
[1753900000573,0.04,3806.9,3806.8,4.51687821]
[1753900000877,0.04,3806.9,3806.8,4.54314699]
[1753900001586,0.04,3806.9,3806.8,11.09213951]
[1753900004213,0.04,3807.9,3807.8,2.62618835]
[1753900004413,0.04,3807.9,3807.8,2.65245023]
[1753900004557,0.04,3807.9,3807.8,3.23938835]
[1753900004758,0.04,3807.9,3807.8,3.81565023]
[1753900005109,0.04,3807.9,3807.8,4.28275023]
[1753900005751,0.04,3807.9,3807.8,4.25648835]
[1753900006156,0.04,3807.9,3807.8,3.78938835]
[1753900006404,0.04,3808.9,3808.8,2.62549884]
[1753900006574,0.9469,3809.8,3809.6,2.6249475]
[1753900006575,0.24425654,3809.7,3809.6,2.6249475]
[1753900006763,0.5,3809.8,3809.7,2.62487859]
[1753900007106,0.5,3809.8,3809.7,3.13572737]
[1753900007793,0.5,3809.8,3809.7,3.10947859]
[1753900008011,0.5,3809.8,3809.7,4.15992737]
[1753900008599,0.5,3809.8,3809.7,4.13367859]
[1753900009414,0.5,3809.8,3809.6,0.9103]
[1753900009578,0.5,3809.8,3809.7,6.78987859]
[1753900009909,0.5,3809.8,3809.7,2.62487859]
[1753900010089,0.5,3809.8,3809.7,6.78787859]
[1753900010465,0.5,3809.8,3809.7,6.78987859]
[1753900010762,0.5,3809.8,3809.7,6.78887859]
[1753900010966,0.5,3809.8,3809.7,4.164]
[1753900011199,0.9329,3809.8,3809.7,4.164]
[1753900011504,0.9329,3809.8,3809.6,2.75613634]
[1753900011802,1e-08,3809.8,3809.7,6.78887859]
[1753900011966,0.04,3810.9,3809.7,6.78887859]
[1753900011967,0.04,3810.9,3810.8,2.62412091]
[1753900012164,0.04,3810.9,3810.8,6.78612091]
[1753900012670,0.04,3810.9,3810.8,7.27072091]
[1753900012985,0.4329,3812.1,3811.8,2.62343249]
[1753900013171,0.24298258,3812.0,3811.8,6.80043249]
[1753900013364,0.24298258,3812.2,3811.8,6.80043249]
[1753900013810,0.67588258,3812.2,3811.8,4.177]
[1753900014099,0.24298258,3812.1,3811.8,4.177]
[1753900014831,0.24298258,3812.1,3811.8,6.80043249]
[1753900014987,0.04,3812.9,3811.8,14.57239379]
[1753900015319,0.5307,3812.9,3811.8,6.79843249]
[1753900015466,0.2426335,3812.8,3811.8,6.79843249]
[1753900015867,0.4329,3812.6,3811.4,0.4846]
[1753900016099,0.4329,3812.6,3811.3,1.2718]
[1753900016100,0.2426335,3812.5,3811.5,2.6235756]
[1753900016269,0.4329,3812.3,3811.6,4.179]
[1753900016469,0.2426335,3812.2,3811.6,4.179]
[1753900016889,0.2426335,3812.2,3811.3,0.7976]
[1753900017103,0.2426335,3812.2,3811.8,2.62343249]
[1753900017330,0.2426335,3812.2,3811.8,6.80243249]
[1753900017473,0.04,3812.9,3811.8,7.76123249]
[1753900017672,0.28214519,3812.9,3811.8,7.76123249]
[1753900018315,0.28214519,3812.9,3812.8,2.62274443]
[1753900018482,0.04,3812.9,3812.8,6.80074443]
[1753900018808,0.04,3812.9,3812.8,7.28534443]
[1753900019574,0.04,3812.9,3812.8,7.75954443]
[1753900020020,0.04,3812.9,3812.8,7.28534443]
[1753900020177,0.04,3812.9,3812.5,0.8304]
[1753900020368,0.04,3812.9,3812.0,0.7718]
[1753900020575,0.9236,3812.8,3811.5,0.7718]
[1753900020819,0.41645802,3812.7,3812.0,2.62324534]
[1753900020971,0.24207802,3812.6,3812.1,4.178]
[1753900021409,0.04,3812.9,3812.8,2.62274443]
[1753900021617,6.43793545,3815.7,3813.4,2.62233177]
[1753900021618,0.24204968,3813.5,3813.4,2.62233177]
[1753900021822,0.04,3815.9,3814.8,2.6213694]
[1753900021987,0.04,3815.9,3815.3,2.62102586]
[1753900022181,0.04,3815.9,3815.3,6.93822586]
[1753900022374,0.04,3815.9,3815.3,4.3172]
[1753900022588,0.04,3815.9,3815.7,8.6460124]
[1753900022785,0.1312,3816.7,3816.6,2.6201331]
[1753900022985,0.042,3816.9,3816.8,2.6199958]
[1753900023277,0.04,3817.9,3817.5,2.61950787]
[1753900023479,0.04,3817.9,3817.8,0.1312]
[1753900023788,1.2974,3817.9,3817.8,0.1312]
[1753900023991,0.5307,3817.9,3817.8,0.1312]
[1753900024192,0.04,3817.9,3817.8,0.1312]
[1753900024448,0.04,3817.9,3817.8,4.231]
[1753900024957,0.1312,3818.6,3818.5,2.61882938]
[1753900025112,0.04,3818.9,3818.5,2.61882938]
[1753900025113,0.04,3818.9,3818.8,2.61862365]
[1753900025314,0.04,3818.9,3818.4,0.1312]
[1753900025647,0.4329,3818.8,3818.4,0.02618897]
[1753900025861,0.4329,3818.8,3817.4,0.796]
[1753900025862,0.4329,3818.7,3817.4,0.796]
[1753900026012,0.4329,3818.7,3817.7,2.61937383]
[1753900026214,0.4329,3818.7,3817.7,2.61937666]
[1753900026565,0.04,3818.9,3818.8,2.61862365]
[1753900026773,0.04,3818.9,3818.8,6.89780988]